[Event "Titled Tuesday Blitz December 06 Early 2022"]
[White "Oro, Faustino"]
[Black "Mkrtchian, Lilit"]
[WhiteFideId "20000197"]
[BlackFideId "13300601"]
[WhiteElo "2642"]
[BlackElo "2497"]
[Result "1-0"]
[Round "07"]
[TimeControl "180+1"]
[Date "2022.12.07"]
[WhiteClock "0:00:08"]
[BlackClock "0:00:01"]

1. e4 {[%clk 0:03:00]}  e6 {[%clk 0:02:57]} 2. d4 {[%clk 0:03:00]}  d5 {[%clk 0:02:57]} 3. Nd2 {[%clk 0:02:59]}  c5 {[%clk 0:02:54]} 4. Ngf3 {[%clk 0:02:58]}  cxd4 {[%clk 0:02:51]} 5. Nxd4 {[%clk 0:02:58]}  Nc6 {[%clk 0:02:47]} 6. Nxc6 {[%clk 0:02:58]}  bxc6 {[%clk 0:02:47]} 7. Bd3 {[%clk 0:02:58]}  Nf6 {[%clk 0:02:35]} 8. O-O {[%clk 0:02:55]}  Be7 {[%clk 0:02:31]} 9. Qe2 {[%clk 0:02:53]}  O-O {[%clk 0:02:29]} 10. Rd1 {[%clk 0:02:51]}  Bb7 {[%clk 0:02:20]} 11. Nf3 {[%clk 0:02:41]}  c5 {[%clk 0:02:14]} 12. exd5 {[%clk 0:02:35]}  exd5 {[%clk 0:02:14]} 13. c3 {[%clk 0:02:32]}  Re8 {[%clk 0:02:13]} 14. Bg5 {[%clk 0:02:27]}  Qc7 {[%clk 0:02:05]} 15. Qc2 {[%clk 0:02:25]}  h6 {[%clk 0:02:01]} 16. Bh4 {[%clk 0:02:21]}  Ne4 {[%clk 0:01:35]} 17. Bxe7 {[%clk 0:02:06]}  Rxe7 {[%clk 0:01:35]} 18. Re1 {[%clk 0:02:07]}  Rae8 {[%clk 0:01:33]} 19. Rad1 {[%clk 0:02:06]}  Qf4 {[%clk 0:01:31]} 20. Qc1 {[%clk 0:01:15]}  Qf6 {[%clk 0:01:23]} 21. Re2 {[%clk 0:01:03]}  Bc6 {[%clk 0:01:01]} 22. Rde1 {[%clk 0:01:01]}  Bd7 {[%clk 0:00:59]} 23. c4 {[%clk 0:00:42]}  Bg4 {[%clk 0:00:51]} 24. Re3 {[%clk 0:00:42]}  Bxf3 {[%clk 0:00:36]} 25. Rxf3 {[%clk 0:00:40]}  Ng5 {[%clk 0:00:30]} 26. Rfe3 {[%clk 0:00:36]}  Rxe3 {[%clk 0:00:25]} 27. Rxe3 {[%clk 0:00:34]}  Rxe3 {[%clk 0:00:20]} 28. Qxe3 {[%clk 0:00:33]}  g6 {[%clk 0:00:17]} 29. cxd5 {[%clk 0:00:24]}  Qxb2 {[%clk 0:00:16]} 30. Qxc5 {[%clk 0:00:23]}  Qa1+ {[%clk 0:00:15]} 31. Bf1 {[%clk 0:00:22]}  Ne4 {[%clk 0:00:14]} 32. Qe3 {[%clk 0:00:18]}  Nd6 {[%clk 0:00:11]} 33. Qxh6 {[%clk 0:00:13]}  Qxa2 {[%clk 0:00:10]} 34. Qg5 {[%clk 0:00:12]}  Qxf2+ {[%clk 0:00:07]} 35. Kxf2 {[%clk 0:00:12]}  Ne4+ {[%clk 0:00:08]} 36. Ke3 {[%clk 0:00:12]}  Nxg5 {[%clk 0:00:08]} 37. h4 {[%clk 0:00:12]}  Nh7 {[%clk 0:00:07]} 38. Kd4 {[%clk 0:00:13]}  Kf8 {[%clk 0:00:06]} 39. d6 {[%clk 0:00:12]}  Nf6 {[%clk 0:00:05]} 40. Bb5 {[%clk 0:00:10]}  a6 {[%clk 0:00:01]} 41. Bxa6 {[%clk 0:00:08]}  Ke8 {[%clk 0:00:01]} 42. Bb5+ {[%clk 0:00:08]}  Kd8 {[%clk 0:00:02]} 43. Ke5 {[%clk 0:00:09]}  Ng4+ {[%clk 0:00:02]} 44. Kf4 {[%clk 0:00:09]}  Nf6 {[%clk 0:00:02]} 45. Bc4 {[%clk 0:00:07]}  Kd7 {[%clk 0:00:01]} 46. Bxf7 {[%clk 0:00:07]}  Kxd6 {[%clk 0:00:01]} 47. Bxg6 {[%clk 0:00:08]}  Ke7 {[%clk 0:00:01]} 48. Kg5 {[%clk 0:00:08]} 1-0


[Site "https://www.chess.com"]

[Event "Titled Tuesday Blitz December 06 Early 2022"]
[White "Ovchinnikov, Vsevolod"]
[Black "Lamaze, Simon"]
[WhiteFideId "24176842"]
[BlackFideId "36069264"]
[WhiteElo "2500"]
[BlackElo "2637"]
[Result "0-1"]
[Round "07"]
[TimeControl "180+1"]
[Date "2022.12.07"]
[WhiteClock "0:00:01"]
[BlackClock "0:01:03"]

1. d4 {[%clk 0:03:00]}  Nf6 {[%clk 0:03:00]} 2. c4 {[%clk 0:03:00]}  g6 {[%clk 0:03:00]} 3. Nc3 {[%clk 0:03:00]}  Bg7 {[%clk 0:03:01]} 4. e4 {[%clk 0:03:01]}  d6 {[%clk 0:03:01]} 5. Nf3 {[%clk 0:03:01]}  O-O {[%clk 0:03:01]} 6. h3 {[%clk 0:03:02]}  e5 {[%clk 0:03:00]} 7. d5 {[%clk 0:03:02]}  Nbd7 {[%clk 0:03:00]} 8. Be3 {[%clk 0:03:01]}  a5 {[%clk 0:02:59]} 9. g4 {[%clk 0:03:01]}  Nc5 {[%clk 0:02:59]} 10. Nd2 {[%clk 0:03:01]}  Nfd7 {[%clk 0:02:59]} 11. a3 {[%clk 0:02:51]}  a4 {[%clk 0:02:59]} 12. h4 {[%clk 0:02:44]}  c6 {[%clk 0:02:54]} 13. Qf3 {[%clk 0:01:57]}  Kh8 {[%clk 0:02:33]} 14. h5 {[%clk 0:01:41]}  Kg8 {[%clk 0:02:33]} 15. g5 {[%clk 0:01:32]}  f5 {[%clk 0:02:24]} 16. hxg6 {[%clk 0:00:56]}  hxg6 {[%clk 0:02:18]} 17. Qh3 {[%clk 0:00:57]}  f4 {[%clk 0:02:17]} 18. Bxc5 {[%clk 0:00:22]}  Nxc5 {[%clk 0:02:18]} 19. Qg2 {[%clk 0:00:22]}  Bd7 {[%clk 0:01:55]} 20. Be2 {[%clk 0:00:08]}  b5 {[%clk 0:01:47]} 21. dxc6 {[%clk 0:00:08]}  Bxc6 {[%clk 0:01:44]} 22. cxb5 {[%clk 0:00:08]}  Bb7 {[%clk 0:01:44]} 23. Bc4+ {[%clk 0:00:06]}  Rf7 {[%clk 0:01:44]} 24. Qh3 {[%clk 0:00:04]}  Kf8 {[%clk 0:01:36]} 25. Bxf7 {[%clk 0:00:04]}  Kxf7 {[%clk 0:01:37]} 26. O-O-O {[%clk 0:00:03]}  Bc8 {[%clk 0:01:35]} 27. Qf3 {[%clk 0:00:03]}  Be6 {[%clk 0:01:35]} 28. Kb1 {[%clk 0:00:04]}  Rb8 {[%clk 0:01:30]} 29. Rhg1 {[%clk 0:00:03]}  Qa5 {[%clk 0:01:25]} 30. Rc1 {[%clk 0:00:03]}  Bf8 {[%clk 0:01:17]} 31. Rh1 {[%clk 0:00:03]}  Bg7 {[%clk 0:01:16]} 32. Qe2 {[%clk 0:00:03]}  Qb6 {[%clk 0:01:12]} 33. Nc4 {[%clk 0:00:03]}  Qd8 {[%clk 0:01:11]} 34. Rhd1 {[%clk 0:00:03]}  Kg8 {[%clk 0:01:02]} 35. Rxd6 {[%clk 0:00:01]}  Qe7 {[%clk 0:01:02]} 36. Rcd1 {[%clk 0:00:01]}  Nb3 {[%clk 0:01:03]} 0-1


[Site "https://www.chess.com"]

[Event "Titled Tuesday Blitz December 06 Early 2022"]
[White "Ozen, Bahadir"]
[Black "Koellner, Ruben Gideon"]
[WhiteFideId "6337058"]
[BlackFideId "12993093"]
[WhiteElo "2503"]
[BlackElo "2303"]
[Result "1-0"]
[Round "07"]
[TimeControl "180+1"]
[Date "2022.12.06"]
[WhiteClock "0:00:28"]
[BlackClock "0:00:05"]

1. g3 {[%clk 0:03:00]}  d5 {[%clk 0:02:59]} 2. Nf3 {[%clk 0:03:01]}  Nf6 {[%clk 0:02:59]} 3. Bg2 {[%clk 0:03:01]}  Nbd7 {[%clk 0:03:00]} 4. O-O {[%clk 0:02:59]}  e5 {[%clk 0:03:00]} 5. d3 {[%clk 0:02:59]}  c6 {[%clk 0:03:00]} 6. e4 {[%clk 0:02:52]}  Bd6 {[%clk 0:02:58]} 7. Nbd2 {[%clk 0:02:41]}  O-O {[%clk 0:02:56]} 8. b3 {[%clk 0:02:33]}  a5 {[%clk 0:02:49]} 9. a3 {[%clk 0:02:32]}  a4 {[%clk 0:02:45]} 10. b4 {[%clk 0:02:32]}  b5 {[%clk 0:02:42]} 11. Bb2 {[%clk 0:02:24]}  d4 {[%clk 0:02:42]} 12. c3 {[%clk 0:02:23]}  c5 {[%clk 0:02:34]} 13. cxd4 {[%clk 0:02:22]}  cxd4 {[%clk 0:02:33]} 14. Rc1 {[%clk 0:01:46]}  Nb6 {[%clk 0:02:32]} 15. Nh4 {[%clk 0:01:44]}  Ne8 {[%clk 0:02:08]} 16. Nf5 {[%clk 0:01:43]}  f6 {[%clk 0:02:07]} 17. f4 {[%clk 0:01:30]}  Be6 {[%clk 0:02:01]} 18. Nxd6 {[%clk 0:01:17]}  Nxd6 {[%clk 0:01:59]} 19. Nf3 {[%clk 0:01:15]}  Nd7 {[%clk 0:01:25]} 20. Qd2 {[%clk 0:01:10]}  Rc8 {[%clk 0:01:23]} 21. Rxc8 {[%clk 0:01:09]}  Qxc8 {[%clk 0:01:23]} 22. Rc1 {[%clk 0:01:10]}  Qb8 {[%clk 0:01:21]} 23. h3 {[%clk 0:00:55]}  Rc8 {[%clk 0:01:20]} 24. fxe5 {[%clk 0:00:54]}  fxe5 {[%clk 0:01:17]} 25. Ng5 {[%clk 0:00:55]}  Bb3 {[%clk 0:01:07]} 26. h4 {[%clk 0:00:50]}  h6 {[%clk 0:00:55]} 27. Bh3 {[%clk 0:00:49]}  hxg5 {[%clk 0:00:49]} 28. Bxd7 {[%clk 0:00:47]}  Rxc1+ {[%clk 0:00:48]} 29. Bxc1 {[%clk 0:00:41]}  Qd8 {[%clk 0:00:36]} 30. Bg4 {[%clk 0:00:28]}  gxh4 {[%clk 0:00:35]} 31. Qf2 {[%clk 0:00:29]}  hxg3 {[%clk 0:00:25]} 32. Qxg3 {[%clk 0:00:30]}  Qf6 {[%clk 0:00:20]} 33. Bg5 {[%clk 0:00:28]}  Qg6 {[%clk 0:00:06]} 34. Qxe5 {[%clk 0:00:28]}  Nf7 {[%clk 0:00:05]} 35. Qe8+ {[%clk 0:00:28]} 1-0


[Site "https://www.chess.com"]

[Event "Titled Tuesday Blitz December 06 Early 2022"]
[White "Pajeken, Jakob Leon"]
[Black "Grandelius, Nils"]
[WhiteFideId "12942839"]
[BlackFideId "1710400"]
[WhiteElo "2618"]
[BlackElo "2870"]
[Result "0-1"]
[Round "07"]
[TimeControl "180+1"]
[Date "2022.12.07"]
[WhiteClock "0:00:09"]
[BlackClock "0:00:41"]

1. d4 {[%clk 0:03:00]}  f5 {[%clk 0:02:59]} 2. Nf3 {[%clk 0:03:01]}  Nf6 {[%clk 0:02:58]} 3. g3 {[%clk 0:03:00]}  g6 {[%clk 0:02:58]} 4. Bg2 {[%clk 0:03:00]}  Bg7 {[%clk 0:02:59]} 5. O-O {[%clk 0:03:01]}  O-O {[%clk 0:03:00]} 6. b3 {[%clk 0:03:01]}  Ne4 {[%clk 0:02:52]} 7. Bb2 {[%clk 0:02:58]}  a5 {[%clk 0:02:51]} 8. Nfd2 {[%clk 0:02:55]}  Nf6 {[%clk 0:02:38]} 9. c4 {[%clk 0:02:53]}  a4 {[%clk 0:02:38]} 10. d5 {[%clk 0:02:37]}  c6 {[%clk 0:02:29]} 11. b4 {[%clk 0:02:19]}  cxd5 {[%clk 0:02:25]} 12. cxd5 {[%clk 0:02:20]}  d6 {[%clk 0:02:15]} 13. a3 {[%clk 0:02:14]}  Nbd7 {[%clk 0:02:15]} 14. Nc3 {[%clk 0:02:06]}  Nb6 {[%clk 0:02:15]} 15. Rb1 {[%clk 0:01:50]}  Bd7 {[%clk 0:02:00]} 16. Nf3 {[%clk 0:01:48]}  Nc4 {[%clk 0:01:58]} 17. Nd4 {[%clk 0:01:44]}  Qb6 {[%clk 0:01:54]} 18. Qd3 {[%clk 0:01:30]}  Ne5 {[%clk 0:01:52]} 19. Qd2 {[%clk 0:01:23]}  Nfg4 {[%clk 0:01:43]} 20. Ne6 {[%clk 0:01:13]}  Bxe6 {[%clk 0:01:38]} 21. dxe6 {[%clk 0:01:14]}  Nc4 {[%clk 0:01:39]} 22. Qd3 {[%clk 0:01:10]}  Nxb2 {[%clk 0:01:38]} 23. Rxb2 {[%clk 0:01:11]}  Qd4 {[%clk 0:01:35]} 24. Rc2 {[%clk 0:00:59]}  Rac8 {[%clk 0:01:28]} 25. Qxd4 {[%clk 0:00:10]}  Bxd4 {[%clk 0:01:29]} 26. Rfc1 {[%clk 0:00:10]}  Bxf2+ {[%clk 0:01:16]} 27. Kf1 {[%clk 0:00:10]}  Be3 {[%clk 0:00:54]} 28. Nd5 {[%clk 0:00:10]}  Bxc1 {[%clk 0:00:54]} 29. Nxe7+ {[%clk 0:00:10]}  Kg7 {[%clk 0:00:55]} 30. Rxc8 {[%clk 0:00:10]}  Rxc8 {[%clk 0:00:51]} 31. Nxc8 {[%clk 0:00:10]}  Ne3+ {[%clk 0:00:47]} 32. Kf2 {[%clk 0:00:09]}  Nxg2 {[%clk 0:00:48]} 33. Kxg2 {[%clk 0:00:10]}  Bxa3 {[%clk 0:00:45]} 34. Nxd6 {[%clk 0:00:09]}  Kf6 {[%clk 0:00:45]} 35. Nxb7 {[%clk 0:00:08]}  Bxb4 {[%clk 0:00:45]} 36. Nd8 {[%clk 0:00:08]}  a3 {[%clk 0:00:45]} 37. Nc6 {[%clk 0:00:09]}  a2 {[%clk 0:00:41]} 0-1


[Site "https://www.chess.com"]

[Event "Titled Tuesday Blitz December 06 Early 2022"]
[White "Palacio,Igor Da Paz"]
[Black "Garv Gaur"]
[WhiteFideId "2121140"]
[BlackFideId "45030839"]
[WhiteElo "2218"]
[BlackElo "2481"]
[Result "0-1"]
[Round "07"]
[TimeControl "180+1"]
[Date "2022.12.07"]
[WhiteClock "0:00:01"]
[BlackClock "0:00:05"]

1. e4 {[%clk 0:02:58]}  Nc6 {[%clk 0:02:57]} 2. Nc3 {[%clk 0:02:57]}  d6 {[%clk 0:02:54]} 3. d4 {[%clk 0:02:56]}  g6 {[%clk 0:02:55]} 4. Be3 {[%clk 0:02:50]}  Bg7 {[%clk 0:02:53]} 5. Qd2 {[%clk 0:02:49]}  e5 {[%clk 0:02:53]} 6. Nge2 {[%clk 0:02:43]}  a6 {[%clk 0:02:37]} 7. O-O-O {[%clk 0:02:27]}  b5 {[%clk 0:02:33]} 8. Nd5 {[%clk 0:02:22]}  Nge7 {[%clk 0:02:26]} 9. Bg5 {[%clk 0:02:16]}  h6 {[%clk 0:02:26]} 10. Bf6 {[%clk 0:02:06]}  O-O {[%clk 0:02:20]} 11. h4 {[%clk 0:01:47]}  Be6 {[%clk 0:02:09]} 12. Bxg7 {[%clk 0:01:28]}  Kxg7 {[%clk 0:01:55]} 13. Nxe7 {[%clk 0:01:26]}  Nxe7 {[%clk 0:01:51]} 14. d5 {[%clk 0:01:24]}  Bd7 {[%clk 0:01:00]} 15. f3 {[%clk 0:01:23]}  f5 {[%clk 0:01:00]} 16. g3 {[%clk 0:01:08]}  fxe4 {[%clk 0:00:58]} 17. fxe4 {[%clk 0:01:09]}  Bg4 {[%clk 0:00:58]} 18. Rh2 {[%clk 0:00:45]}  Qd7 {[%clk 0:00:56]} 19. Re1 {[%clk 0:00:38]}  Rf3 {[%clk 0:00:55]} 20. Bg2 {[%clk 0:00:15]}  Rf2 {[%clk 0:00:54]} 21. Qe3 {[%clk 0:00:15]}  Raf8 {[%clk 0:00:53]} 22. Ng1 {[%clk 0:00:10]}  Nc8 {[%clk 0:00:39]} 23. Kb1 {[%clk 0:00:08]}  Nb6 {[%clk 0:00:39]} 24. b3 {[%clk 0:00:08]}  c6 {[%clk 0:00:36]} 25. Qxb6 {[%clk 0:00:08]}  cxd5 {[%clk 0:00:35]} 26. exd5 {[%clk 0:00:08]}  Qc8 {[%clk 0:00:32]} 27. Ne2 {[%clk 0:00:01]}  Bxe2 {[%clk 0:00:31]} 28. Bh3 {[%clk 0:00:01]}  Qc3 {[%clk 0:00:13]} 29. Rxf2 {[%clk 0:00:01]}  Qxe1+ {[%clk 0:00:05]} 30. Kb2 {[%clk 0:00:01]}  Qxf2 {[%clk 0:00:05]} 0-1


[Site "https://www.chess.com"]

[Event "Titled Tuesday Blitz December 06 Early 2022"]
[White "Raahul V S"]
[Black "Papasimakopoulos, Alexandros"]
[WhiteFideId "25035525"]
[BlackFideId "4244125"]
[WhiteElo "2532"]
[BlackElo "2753"]
[Result "1-0"]
[Round "07"]
[TimeControl "180+1"]
[Date "2022.12.07"]
[WhiteClock "0:00:06"]
[BlackClock "0:00:06"]

1. c4 {[%clk 0:03:00]}  e6 {[%clk 0:02:52]} 2. Nc3 {[%clk 0:02:59]}  d5 {[%clk 0:02:50]} 3. d4 {[%clk 0:02:59]}  Be7 {[%clk 0:02:49]} 4. cxd5 {[%clk 0:02:57]}  exd5 {[%clk 0:02:49]} 5. Bf4 {[%clk 0:02:58]}  c6 {[%clk 0:02:49]} 6. e3 {[%clk 0:02:57]}  Bd6 {[%clk 0:02:49]} 7. Nge2 {[%clk 0:02:47]}  Nf6 {[%clk 0:02:48]} 8. Qc2 {[%clk 0:02:45]}  O-O {[%clk 0:02:44]} 9. Bxd6 {[%clk 0:02:45]}  Qxd6 {[%clk 0:02:44]} 10. Ng3 {[%clk 0:02:46]}  Re8 {[%clk 0:02:42]} 11. Bd3 {[%clk 0:02:46]}  Nbd7 {[%clk 0:02:41]} 12. O-O {[%clk 0:02:44]}  Nf8 {[%clk 0:02:41]} 13. Rae1 {[%clk 0:02:43]}  h5 {[%clk 0:02:36]} 14. f3 {[%clk 0:02:41]}  h4 {[%clk 0:02:32]} 15. Nh1 {[%clk 0:02:41]}  Bd7 {[%clk 0:02:24]} 16. Nf2 {[%clk 0:02:40]}  c5 {[%clk 0:02:14]} 17. dxc5 {[%clk 0:02:36]}  Qxc5 {[%clk 0:02:13]} 18. e4 {[%clk 0:02:20]}  dxe4 {[%clk 0:02:01]} 19. Nxe4 {[%clk 0:02:19]}  Qb6 {[%clk 0:01:48]} 20. Nxf6+ {[%clk 0:02:13]}  Qxf6 {[%clk 0:01:49]} 21. Ne4 {[%clk 0:02:13]}  Qb6+ {[%clk 0:01:49]} 22. Qf2 {[%clk 0:02:11]}  Red8 {[%clk 0:01:33]} 23. Rd1 {[%clk 0:02:03]}  Ne6 {[%clk 0:01:21]} 24. Qxb6 {[%clk 0:01:57]}  axb6 {[%clk 0:01:22]} 25. a3 {[%clk 0:01:57]}  Nf4 {[%clk 0:01:19]} 26. Bc4 {[%clk 0:01:54]}  Be6 {[%clk 0:01:11]} 27. Bxe6 {[%clk 0:01:53]}  Nxe6 {[%clk 0:01:11]} 28. Nd6 {[%clk 0:01:51]}  Rd7 {[%clk 0:01:10]} 29. Rd2 {[%clk 0:01:47]}  Rc8 {[%clk 0:00:56]} 30. Rfd1 {[%clk 0:01:41]}  Rc5 {[%clk 0:00:54]} 31. Ne4 {[%clk 0:01:20]}  Rxd2 {[%clk 0:00:51]} 32. Rxd2 {[%clk 0:01:21]}  Rc7 {[%clk 0:00:43]} 33. Nc3 {[%clk 0:01:15]}  g5 {[%clk 0:00:37]} 34. Nd5 {[%clk 0:01:10]}  Rc1+ {[%clk 0:00:37]} 35. Kf2 {[%clk 0:01:10]}  b5 {[%clk 0:00:35]} 36. Nc3 {[%clk 0:01:09]}  Rh1 {[%clk 0:00:22]} 37. h3 {[%clk 0:01:08]}  Nf4 {[%clk 0:00:21]} 38. Nxb5 {[%clk 0:01:04]}  Nh5 {[%clk 0:00:21]} 39. Re2 {[%clk 0:00:47]}  Ng3 {[%clk 0:00:20]} 40. Re1 {[%clk 0:00:47]}  Kf8 {[%clk 0:00:13]} 41. Nd6 {[%clk 0:00:45]}  b6 {[%clk 0:00:13]} 42. Nc4 {[%clk 0:00:43]}  b5 {[%clk 0:00:11]} 43. Nd6 {[%clk 0:00:43]}  b4 {[%clk 0:00:12]} 44. axb4 {[%clk 0:00:42]}  Rxe1 {[%clk 0:00:09]} 45. Kxe1 {[%clk 0:00:43]}  Ke7 {[%clk 0:00:09]} 46. Ne4 {[%clk 0:00:41]}  Nf5 {[%clk 0:00:10]} 47. Nxg5 {[%clk 0:00:40]}  Ne3 {[%clk 0:00:10]} 48. Kf2 {[%clk 0:00:40]}  Nd1+ {[%clk 0:00:10]} 49. Ke2 {[%clk 0:00:40]}  Nxb2 {[%clk 0:00:11]} 50. f4 {[%clk 0:00:39]}  Kf6 {[%clk 0:00:11]} 51. b5 {[%clk 0:00:28]}  Nc4 {[%clk 0:00:09]} 52. Ne4+ {[%clk 0:00:27]}  Kf5 {[%clk 0:00:09]} 53. Nd2 {[%clk 0:00:27]}  Nd6 {[%clk 0:00:08]} 54. Ke3 {[%clk 0:00:19]}  Nxb5 {[%clk 0:00:08]} 55. Nf3 {[%clk 0:00:20]}  Nd6 {[%clk 0:00:07]} 56. Nxh4+ {[%clk 0:00:20]}  Kf6 {[%clk 0:00:07]} 57. g4 {[%clk 0:00:21]}  Nc4+ {[%clk 0:00:07]} 58. Kd3 {[%clk 0:00:21]}  Nb2+ {[%clk 0:00:07]} 59. Kd4 {[%clk 0:00:20]}  Na4 {[%clk 0:00:07]} 60. g5+ {[%clk 0:00:20]}  Ke6 {[%clk 0:00:07]} 61. f5+ {[%clk 0:00:20]}  Kd6 {[%clk 0:00:08]} 62. Nf3 {[%clk 0:00:20]}  Nb6 {[%clk 0:00:07]} 63. Ne5 {[%clk 0:00:19]}  Ke7 {[%clk 0:00:07]} 64. Kc5 {[%clk 0:00:19]}  Na4+ {[%clk 0:00:06]} 65. Kc4 {[%clk 0:00:17]}  Nb2+ {[%clk 0:00:06]} 66. Kd5 {[%clk 0:00:17]}  Nd1 {[%clk 0:00:06]} 67. f6+ {[%clk 0:00:16]}  Kf8 {[%clk 0:00:06]} 68. h4 {[%clk 0:00:13]}  Ne3+ {[%clk 0:00:06]} 69. Ke4 {[%clk 0:00:12]}  Ng2 {[%clk 0:00:06]} 70. h5 {[%clk 0:00:11]}  Kg8 {[%clk 0:00:06]} 71. Nf3 {[%clk 0:00:08]}  Kf8 {[%clk 0:00:05]} 72. Nd4 {[%clk 0:00:08]}  Nh4 {[%clk 0:00:04]} 73. Nf5 {[%clk 0:00:07]}  Ng2 {[%clk 0:00:05]} 74. Ne3 {[%clk 0:00:06]}  Nh4 {[%clk 0:00:04]} 75. Kf4 {[%clk 0:00:06]}  Kg8 {[%clk 0:00:02]} 76. Kg4 {[%clk 0:00:06]}  Ng6 {[%clk 0:00:03]} 77. hxg6 {[%clk 0:00:06]}  fxg6 {[%clk 0:00:04]} 78. Kf4 {[%clk 0:00:06]}  Kf7 {[%clk 0:00:04]} 79. Ke5 {[%clk 0:00:07]}  Kg8 {[%clk 0:00:05]} 80. Ke6 {[%clk 0:00:08]}  Kh7 {[%clk 0:00:03]} 81. Ng4 {[%clk 0:00:08]}  Kg8 {[%clk 0:00:03]} 82. Ne5 {[%clk 0:00:07]}  Kf8 {[%clk 0:00:04]} 83. Nd7+ {[%clk 0:00:06]}  Kg8 {[%clk 0:00:04]} 84. f7+ {[%clk 0:00:07]}  Kh7 {[%clk 0:00:05]} 85. f8=R {[%clk 0:00:05]}  Kg7 {[%clk 0:00:05]} 86. Rf7+ {[%clk 0:00:06]}  Kg8 {[%clk 0:00:05]} 87. Nf6+ {[%clk 0:00:05]}  Kh8 {[%clk 0:00:06]} 88. Rh7# {[%clk 0:00:06]} 1-0


[Site "https://www.chess.com"]

[Event "Titled Tuesday Blitz December 06 Early 2022"]
[White "Sadykov, Ramil"]
[Black "Jaskolka, Tomasz"]
[WhiteFideId "24113590"]
[BlackFideId "1170791"]
[WhiteElo "2579"]
[BlackElo "2446"]
[Result "0-1"]
[Round "07"]
[TimeControl "180+1"]
[Date "2022.12.07"]
[WhiteClock "0:00:01"]
[BlackClock "0:00:36"]

1. e4 {[%clk 0:02:55]}  e6 {[%clk 0:02:58]} 2. d3 {[%clk 0:02:50]}  c5 {[%clk 0:02:55]} 3. Nd2 {[%clk 0:02:42]}  Nc6 {[%clk 0:02:55]} 4. g3 {[%clk 0:02:41]}  g6 {[%clk 0:02:55]} 5. Bg2 {[%clk 0:02:41]}  Bg7 {[%clk 0:02:55]} 6. f4 {[%clk 0:02:42]}  Nge7 {[%clk 0:02:56]} 7. Ngf3 {[%clk 0:02:43]}  d5 {[%clk 0:02:52]} 8. e5 {[%clk 0:02:43]}  b6 {[%clk 0:02:51]} 9. O-O {[%clk 0:02:42]}  a5 {[%clk 0:02:52]} 10. Re1 {[%clk 0:02:39]}  a4 {[%clk 0:02:52]} 11. a3 {[%clk 0:02:38]}  b5 {[%clk 0:02:45]} 12. c4 {[%clk 0:02:31]}  bxc4 {[%clk 0:02:28]} 13. dxc4 {[%clk 0:02:31]}  O-O {[%clk 0:02:26]} 14. Qc2 {[%clk 0:02:20]}  Nf5 {[%clk 0:02:25]} 15. cxd5 {[%clk 0:02:14]}  Qxd5 {[%clk 0:02:01]} 16. Ne4 {[%clk 0:02:12]}  Ncd4 {[%clk 0:01:58]} 17. Qxc5 {[%clk 0:02:07]}  Nb3 {[%clk 0:01:52]} 18. Qc3 {[%clk 0:00:58]}  Nxa1 {[%clk 0:01:49]} 19. g4 {[%clk 0:00:58]}  Nh6 {[%clk 0:01:34]} 20. Nf6+ {[%clk 0:00:55]}  Bxf6 {[%clk 0:01:32]} 21. exf6 {[%clk 0:00:56]}  Bb7 {[%clk 0:01:25]} 22. f5 {[%clk 0:00:50]}  Nxg4 {[%clk 0:01:23]} 23. fxe6 {[%clk 0:00:43]}  fxe6 {[%clk 0:01:14]} 24. Qb4 {[%clk 0:00:09]}  Nc2 {[%clk 0:00:37]} 25. Qxg4 {[%clk 0:00:07]}  Nxe1 {[%clk 0:00:37]} 26. Nxe1 {[%clk 0:00:08]}  Qc5+ {[%clk 0:00:37]} 27. Be3 {[%clk 0:00:01]}  Qxe3+ {[%clk 0:00:37]} 28. Kf1 {[%clk 0:00:01]}  Ba6+ {[%clk 0:00:36]} 0-1


[Site "https://www.chess.com"]